fUST/lending_fUST_20241113
["ID","MTS","AMOUNT","RATE_DAILY","PERIOD"]
[342097720,1731436256655,-500.0,0.00021917,2]
[342097721,1731436256664,-500.0,0.00021917,2]
[342097722,1731436256673,-500.0,0.00021917,2]
[342097723,1731436256682,-1265.25,0.00021917,2]
[342097724,1731436256692,-500.0,0.00021917,2]
[342097725,1731436256701,-571.23,0.00021917,2]
[342097726,1731436256710,-500.0,0.00021917,2]
[342097727,1731436256720,-375.07477633,0.00021917,2]
[342097729,1731436256729,-500.0,0.00021917,2]
[342097730,1731436256739,-500.0,0.00021917,2]
[342097731,1731436256748,-500.0,0.00021917,2]
[342097732,1731436256758,-500.0,0.00021917,2]
[342097733,1731436256767,-1531.6,0.00021917,2]
[342097734,1731436256778,-500.0,0.00021917,2]
[342097735,1731436256787,-500.0,0.00021917,2]
[342097736,1731436256796,-3923.22,0.00021917,2]
[342097737,1731436256805,-500.0,0.00021917,2]
[342097738,1731436256815,-500.0,0.00021917,2]
[342097739,1731436256823,-1524.69,0.00021917,2]
[342097740,1731436256832,-279.345091,0.00021917,2]
[342097741,1731436256842,-279.345091,0.00021917,2]
[342097742,1731436256851,-279.345091,0.00021917,2]
[342097743,1731436256862,-279.345091,0.00021917,2]
[342097744,1731436256871,-614.65,0.00021917,2]
[342097745,1731436256881,-614.65,0.00021917,2]
[342097746,1731436256892,-279.345091,0.00021917,2]
[342097747,1731436256902,-500.0,0.00021917,2]
[342097748,1731436256912,-279.345091,0.00021917,2]
[342097749,1731436256922,-614.65,0.00021917,2]
[342097750,1731436256931,-614.65,0.00021917,2]
[342097751,1731436256941,-279.345091,0.00021917,2]
[342097752,1731436256951,-614.65,0.00021917,2]
[342097753,1731436256961,-279.345091,0.00021917,2]
[342097754,1731436256970,-614.65,0.00021917,2]
[342097755,1731436256980,-614.65,0.00021917,2]
[342097756,1731436256989,-500.0,0.00021917,2]
[342097757,1731436256999,-614.65,0.00021917,2]
[342097758,1731436257008,-614.65,0.00021917,2]
[342097759,1731436257017,-467.903779,0.00021917,2]
[342097760,1731436257027,-614.65,0.00021917,2]
[342097761,1731436257036,-614.65,0.00021917,2]
[342097762,1731436257051,-467.903779,0.00021917,2]
[342097763,1731436257061,-614.65,0.00021917,2]
[342097764,1731436257071,-467.903779,0.00021917,2]
[342097765,1731436257082,-614.65,0.00021917,2]
[342097766,1731436257091,-614.65,0.00021917,2]
[342097767,1731436257102,-467.903779,0.00021917,2]
[342097768,1731436257111,-500.0,0.00021917,2]
[342097769,1731436257121,-614.65,0.00021917,2]
[342097770,1731436257131,-500.0,0.00021917,2]
[342097771,1731436257147,-614.65,0.00021917,2]
[342097772,1731436257158,-614.65,0.00021917,2]
[342097773,1731436257168,-614.65,0.00021917,2]
[342097774,1731436257178,-614.65,0.00021917,2]
[342097775,1731436257187,-614.65,0.00021917,2]
[342097776,1731436257197,-614.65,0.00021917,2]
[342097777,1731436257207,-614.65,0.00021917,2]
[342097778,1731436257216,-614.65,0.00021917,2]
[342097779,1731436257225,-508.25029809,0.00021917,2]
[342097780,1731436257235,-1095.355533,0.00021917,2]
[342097781,1731436257245,-614.78228304,0.00021917,2]
[342097782,1731436257255,-1095.355533,0.00021917,2]
[342097783,1731436257264,-467.903779,0.00021917,2]
[342097784,1731436257274,-1095.355533,0.00021917,2]
[342097785,1731436257283,-467.903779,0.00021917,2]
[342097786,1731436257293,-1095.355533,0.00021917,2]
[342097787,1731436257302,-467.903779,0.00021917,2]
[342097788,1731436257311,-467.903779,0.00021917,2]
[342097789,1731436257320,-1095.355533,0.00021917,2]
[342097790,1731436257330,-500.0,0.00021917,2]
[342097791,1731436257339,-500.0,0.00021917,2]
[342097792,1731436257349,-1095.355533,0.00021917,2]
[342097793,1731436257359,-500.0,0.00021917,2]
[342097794,1731436257368,-1095.355533,0.00021917,2]
[342097795,1731436257377,-1095.355533,0.00021917,2]
[342097796,1731436257390,-1095.355533,0.00021917,2]
[342097797,1731436257399,-1095.355533,0.00021917,2]
[342097798,1731436257409,-500.0,0.00021917,2]
[342097799,1731436257419,-1095.355533,0.00021917,2]
[342097800,1731436257428,-2336.0,0.00021917,2]
[342097801,1731436257438,-1095.355533,0.00021917,2]
[342097802,1731436257447,-500.0,0.00021917,2]
[342097803,1731436257456,-500.0,0.00021917,2]
[342097804,1731436257466,-500.0,0.00021917,2]
[342097805,1731436257475,-500.0,0.00021917,2]
[342097806,1731436257484,-543.79,0.00021917,2]
[342097807,1731436257494,-500.0,0.00021917,2]
[342097808,1731436257503,-500.0,0.00021917,2]
[342097809,1731436257513,-503.1659863,0.00021917,2]
[342097810,1731436257522,-500.0,0.00021917,2]
[342097811,1731436257532,-504.79785811,0.00021917,2]
[342097812,1731436257541,-151.0,0.00021917,2]
[342097813,1731436257550,-205.906167,0.00021917,2]
[342097814,1731436257559,-500.0,0.00021917,2]
[342097815,1731436257569,-531.6447072,0.00021917,2]
[342097816,1731436257578,-500.0,0.00021917,2]
[342097817,1731436257588,-500.0,0.00021917,2]
[342097818,1731436257597,-500.0,0.00021917,2]
[342097819,1731436257606,-500.0,0.00021917,2]
[342097820,1731436257615,-500.0,0.00021917,2]
[342097821,1731436257624,-500.0,0.00021917,2]
[342097822,1731436257633,-500.0,0.00021917,2]
[342097823,1731436257646,-500.0,0.00021917,2]
[342097824,1731436257655,-598.00750615,0.00021917,2]
[342097825,1731436257663,-500.0,0.00021917,2]
[342097826,1731436257672,-654.86,0.00021917,2]
[342097827,1731436257681,-500.0,0.00021917,2]
[342097828,1731436257690,-500.0,0.00021917,2]
[342097829,1731436257700,-500.0,0.00021917,2]
[342097830,1731436257709,-781.48,0.00021917,2]
[342097831,1731436257719,-500.0,0.00021917,2]
[342097832,1731436257728,-500.0,0.00021917,2]
[342097833,1731436257738,-500.0,0.00021917,2]
[342097834,1731436257747,-500.0,0.00021917,2]
[342097835,1731436257757,-500.0,0.00021917,2]
[342097836,1731436257767,-500.0,0.00021917,2]
[342097837,1731436257776,-500.0,0.00021917,2]
[342097838,1731436257785,-500.0,0.00021917,2]
[342097839,1731436257795,-500.0,0.00021917,2]
[342097840,1731436257874,-1029.77,0.00021917,2]
[342097841,1731436257884,-500.0,0.00021917,2]
[342097842,1731436257897,-941.87,0.00021917,2]
[342097843,1731436257907,-500.0,0.00021917,2]
[342097844,1731436257917,-539.60783763,0.00021917,2]
[342097845,1731436257925,-1097.47,0.00021917,2]
[342097846,1731436257935,-500.0,0.00021917,2]
[342097847,1731436257948,-501.65037544,0.00021917,2]
[342097848,1731436257957,-500.0,0.00021917,2]
[342097849,1731436257967,-500.0,0.00021917,2]
[342097850,1731436257976,-500.0,0.00021917,2]
[342097851,1731436257985,-500.0,0.00021917,2]
[342097852,1731436257995,-340.25636327,0.00021917,2]
[342097853,1731436258163,-260.04363673,0.00021917,2]
[342097854,1731436258173,-500.0,0.00021917,2]
[342097855,1731436258182,-151.0,0.00021917,2]
[342097856,1731436258191,-1767.35,0.00021917,2]
[342097857,1731436258201,-151.0,0.00021917,2]
[342097858,1731436258211,-3058.15,0.00021917,2]
[342097859,1731436258220,-151.0,0.00021917,2]
[342097860,1731436258230,-151.0,0.00021917,2]
[342097861,1731436258239,-168.65934,0.00021917,2]
[342097862,1731436258249,-559.24,0.00021917,2]
[342097863,1731436258259,-500.0,0.00021917,2]
[342097864,1731436258268,-500.0,0.00021917,2]
[342097865,1731436258277,-500.0,0.00021917,2]
[342097866,1731436258287,-522.25847094,0.00021917,2]
[342097867,1731436258296,-500.0,0.00021917,2]
[342097868,1731436258306,-500.0,0.00021917,2]
[342097869,1731436258316,-500.0,0.00021917,2]
[342097870,1731436258325,-500.0,0.00021917,2]
[342097871,1731436258334,-242.1070627,0.00021917,2]
[342097872,1731436258343,-500.0,0.00021917,2]
[342097873,1731436258353,-500.0,0.00021917,2]
[342097874,1731436258362,-500.0,0.00021917,2]
[342097875,1731436258372,-500.0,0.00021917,2]
[342097876,1731436258381,-605.85,0.00021917,2]
[342097877,1731436258391,-500.0,0.00021917,2]
[342097878,1731436258401,-500.0,0.00021917,2]
[342097879,1731436258410,-500.0,0.00021917,2]
[342097880,1731436258419,-2014.66,0.00021917,2]
[342097881,1731436258429,-500.0,0.00021917,2]
[342097882,1731436258438,-500.0,0.00021917,2]
[342097883,1731436258448,-527.10875742,0.00021917,2]
[342097884,1731436258457,-501.78476586,0.00021917,2]
[342097885,1731436258466,-500.0,0.00021917,2]
[342097886,1731436258475,-500.0,0.00021917,2]
[342097887,1731436258485,-500.0,0.00021917,2]
[342097888,1731436258497,-500.0,0.00021917,2]
[342097889,1731436258505,-957.69,0.00021917,2]
[342097890,1731436258514,-500.0,0.00021917,2]
[342097891,1731436258524,-581.23534728,0.00021917,2]
[342097892,1731436258533,-503.05608466,0.00021917,2]
[342097893,1731436258542,-500.0,0.00021917,2]
[342097894,1731436258551,-516.43683513,0.00021917,2]
[342097895,1731436258560,-500.0,0.00021917,2]
[342097896,1731436258570,-500.0,0.00021917,2]
[342097897,1731436258581,-166.666666,0.00021918,2]
[342097898,1731436258590,-500.0,0.00021918,2]
[342097899,1731436258599,-500.0,0.00021918,2]
[342097900,1731436258608,-584.21964335,0.00021918,2]
[342097901,1731436258617,-151.0,0.0002192,7]
[342097902,1731436258627,-3000.0,0.0002192,2]
[342097903,1731436258636,-3000.0,0.0002193,2]
[342097904,1731436258647,-3000.0,0.0002194,2]
[342097905,1731436258656,-5700.0,0.0002195,2]
[342097906,1731436258666,-500.0,0.00021973,2]
[342097907,1731436258675,-500.0,0.00021973,2]
[342097908,1731436258684,-500.0,0.00021973,2]
[342097909,1731436258693,-500.0,0.00021973,2]
[342097910,1731436258702,-500.0,0.00021973,2]
[342097911,1731436258713,-500.0,0.00021973,2]
[342097912,1731436258722,-500.0,0.00021973,2]
[342097913,1731436258732,-500.0,0.00021973,2]
[342097914,1731436258741,-500.0,0.00021973,2]
[342097915,1731436258751,-500.0,0.00021973,2]
[342097916,1731436258761,-500.0,0.00021973,2]
[342097917,1731436258770,-500.0,0.00021973,2]
[342097918,1731436258780,-500.0,0.00021973,2]
[342097919,1731436258789,-500.311283,0.00021973,2]
[342097920,1731436258798,-500.0,0.00021973,2]
[342097921,1731436258808,-500.0,0.00021973,2]
[342097922,1731436258817,-500.0,0.00021973,2]
[342097923,1731436258826,-258.49628225,0.00021973,2]
[342097924,1731436258835,-160.8790433,0.00021973,2]
[342097925,1731436258844,-500.0,0.00021973,2]
[342097926,1731436258855,-500.0,0.00021973,2]
[342097927,1731436258869,-507.6963819,0.00021973,2]
[342097928,1731436258878,-319.81398612,0.00021973,2]
[342097929,1731436258887,-500.0,0.00021973,2]
[342097930,1731436258901,-500.0,0.00021973,2]
[342097931,1731436258910,-151.0,0.00021973,7]
[342097932,1731436258920,-151.0,0.00021998,7]
[342097933,1731436258929,-269.0,0.00021998,2]
[342097934,1731436258940,-41688.48146755,0.00022,30]
[342097935,1731436258952,-1079.8001604,0.00022,30]
[342097936,1731436258964,-259.68245907,0.00022,30]
[342097937,1731436258977,-1164.079014,0.00022,30]
[342097946,1731436480117,167.339426,0.00013973,2]
[342097977,1731437367129,-3292.56034421,0.00019602,2]
[342098028,1731437432458,-194.69624758,0.000198,2]
[342098030,1731437432467,-392.54210803,0.0002,2]
[342098035,1731437432506,-776.7287253,0.0002,2]
[342098037,1731437432515,-302.366924,0.00020149,2]
[342098039,1731437432524,-384.369793,0.00020149,2]
[342098041,1731437432534,-3101.7956353,0.00020436,2]
[342098043,1731437432543,-300.0,0.00020697,2]
[342098046,1731437432553,-153.0,0.00020698,2]
[342098047,1731437432562,-153.0,0.00020698,2]
[342098049,1731437432571,-153.0,0.00020698,2]
[342098052,1731437432583,-153.0,0.00020698,2]
[342098053,1731437432592,-153.0,0.00020698,2]
[342098056,1731437432601,-500.0,0.000207,2]
[342098057,1731437432610,-500.0,0.000207,2]
[342098059,1731437432619,-302.366924,0.00020834,2]
[342098061,1731437432628,-152.769,0.00020867,2]
[342098063,1731437432637,-308.8627427,0.00021178,2]
[342098065,1731437432646,-1496.077885,0.000212,2]
[342098067,1731437432656,-302.366924,0.00021519,2]
[342098070,1731437432665,-157.4023425,0.00021534,2]
[342098072,1731437432675,-153.0,0.00021534,2]
[342098074,1731437432684,-213.2885361,0.00021534,2]
[342098076,1731437432693,-212.1428121,0.00021534,2]
[342098078,1731437432703,-153.0,0.00021534,2]
[342098080,1731437432712,-212.1428121,0.00021534,2]
[342098082,1731437432721,-153.0,0.00021534,2]
[342098084,1731437432731,-153.0,0.00021534,2]
[342098086,1731437432740,-110.9999439,0.00021534,2]
[342098088,1731437432752,-101.1428682,0.00021534,2]
[342098099,1731437432856,-153.0,0.00021534,2]
[342098101,1731437432866,-211.0760876,0.00021534,2]
[342098103,1731437432876,-303.8520826,0.00021534,2]
[342098105,1731437432885,-303.8520826,0.00021534,2]
[342098108,1731437432895,-303.8520826,0.00021534,2]
[342098110,1731437432905,-303.8520826,0.00021534,2]
[342098112,1731437432914,-303.8520826,0.00021534,2]
[342098114,1731437432924,-1000.0,0.000217,2]
[342098116,1731437432933,-1721.20638009,0.00021716,2]
[342098122,1731437438681,-1117.42406567,0.00021716,2]
[342098162,1731437443723,-485.51445682,0.00021717,2]
[342098163,1731437443734,-514.48554318,0.00021717,2]
[342098164,1731437443743,-167.48,0.00021807,3]
[342098165,1731437443753,-502.44,0.00021807,3]
[342098167,1731437443762,-618.54208361,0.00021816,2]
[342098168,1731437443772,-462.1316047,0.00021816,2]
[342098169,1731437443781,-446.61347968,0.00021816,2]
[342098170,1731437443790,-500.0,0.00021816,2]
[342098172,1731437443799,-62.84297829,0.00021816,2]
[342098188,1731437446325,-422.41139973,0.00021816,2]
[342098189,1731437446339,-500.0,0.00021816,2]
[342098190,1731437446350,-415.24919992,0.00021816,2]
[342098191,1731437446359,-500.0,0.00021816,2]
[342098192,1731437446369,-583.78899612,0.00021816,2]
[342098193,1731437446379,-500.0,0.00021816,2]
[342098194,1731437446390,-490.28419643,0.00021816,2]
[342098195,1731437446399,-500.0,0.00021816,2]
[342098196,1731437446409,-500.0,0.00021816,2]
[342098197,1731437446419,-500.0,0.00021816,2]
[342098198,1731437446429,-500.0,0.00021816,2]
[342098199,1731437446439,-300.0,0.00021816,2]
[342098200,1731437446448,-500.0,0.00021816,2]
[342098201,1731437446457,-500.0,0.00021816,2]
[342098202,1731437446467,-500.0,0.00021816,2]
[342098203,1731437446478,-500.0,0.00021816,2]
[342098204,1731437446488,-607.07478809,0.00021816,2]
[342098205,1731437446498,-394.82426473,0.00021816,2]
[342098206,1731437446508,-500.0,0.00021816,2]
[342098207,1731437446518,-500.0,0.00021816,2]
[342098208,1731437446528,-500.0,0.00021816,2]
[342098209,1731437446537,-500.0,0.00021816,2]
[342098210,1731437446547,-500.0,0.00021816,2]
[342098211,1731437446558,-500.0,0.00021816,2]
[342098212,1731437446668,-500.0,0.00021816,2]
[342098213,1731437446678,-500.0,0.00021816,2]
[342098214,1731437446688,-500.0,0.00021816,2]
[342098215,1731437446698,-500.0,0.00021816,2]
[342098216,1731437446708,-500.0,0.00021816,2]
[342098217,1731437446718,-523.41838253,0.00021816,2]
[342098218,1731437446728,-500.0,0.00021816,2]
[342098219,1731437446738,-500.0,0.00021816,2]
[342098220,1731437446748,-500.0,0.00021816,2]
[342098221,1731437446758,-500.0,0.00021816,2]
[342098222,1731437446768,-500.0,0.00021816,2]
[342098223,1731437446777,-500.0,0.00021816,2]
[342098224,1731437446787,-500.0,0.00021816,2]
[342098225,1731437446797,-500.0,0.00021816,2]
[342098226,1731437446806,-500.0,0.00021816,2]
[342098227,1731437446816,-500.0,0.00021816,2]
[342098228,1731437446826,-500.0,0.00021816,2]
[342098229,1731437446840,-500.0,0.00021816,2]
[342098230,1731437446850,-500.0,0.00021816,2]
[342098231,1731437446859,-500.0,0.00021816,2]
[342098232,1731437446869,-500.0,0.00021816,2]
[342098233,1731437446880,-500.0,0.00021816,2]
[342098234,1731437447097,-500.0,0.00021816,2]
[342098235,1731437447106,-500.0,0.00021816,2]
[342098237,1731437447116,-307.68217395,0.00021816,2]
[342098238,1731437447126,-500.0,0.00021816,2]
[342098239,1731437447136,-500.0,0.00021816,2]
[342098240,1731437447145,-500.0,0.00021816,2]
[342098241,1731437447155,-500.0,0.00021816,2]
[342098242,1731437447164,-500.0,0.00021816,2]
[342098243,1731437447174,-500.0,0.00021816,2]
[342098244,1731437447183,-500.0,0.00021816,2]
[342098245,1731437447192,-500.0,0.00021816,2]
[342098246,1731437447202,-500.0,0.00021816,2]
[342098247,1731437447214,-500.0,0.00021816,2]
[342098248,1731437447223,-500.0,0.00021816,2]
[342098249,1731437447232,-500.0,0.00021816,2]
[342098250,1731437447241,-500.0,0.00021816,2]
[342098251,1731437447252,-860.97304481,0.00021817,2]
[342098252,1731437447264,-1511.7986353,0.00021817,2]
[342098253,1731437447276,-1110.9613647,0.00021817,2]
[342098262,1731437480739,7127.44258479,0.00019502,2]
[342098271,1731437565199,167.956815,0.00013973,2]
[342098285,1731438076111,500.0,0.00025,120]
[342098287,1731438089271,1000.0,0.00027,60]
[342098289,1731438273873,167.956815,0.00013973,2]
[342098295,1731438330119,-1358.0,0.00028,120]
[342098297,1731438419106,-3154.69211869,0.00019057,2]
[342098336,1731438632616,-301.519803,0.0001925,2]
[342098337,1731438632626,-3000.0,0.00019269,2]
[342098338,1731438632635,-1169.27083333,0.0002,2]
[342098339,1731438632645,-179.5794738,0.00020033,2]
[342098340,1731438632655,-248.015154,0.0002015,2]
[342098343,1731438632664,-248.015154,0.00020155,2]
[342098345,1731438632675,-248.015154,0.00020161,2]
[342098346,1731438632684,-248.015154,0.00020166,2]
[342098348,1731438632693,-248.015154,0.00020171,2]
[342098350,1731438632702,-248.015154,0.00020177,2]
[342098352,1731438632712,-555.91547364,0.00020177,2]
[342098354,1731438632721,-248.015154,0.00020182,2]
[342098356,1731438632731,-248.015154,0.00020187,2]
[342098358,1731438632740,-248.015154,0.00020193,2]
[342098360,1731438632749,-248.015154,0.00020198,2]
[342098362,1731438632758,-248.015154,0.00020203,2]
[342098364,1731438632770,-248.015154,0.00020208,2]
[342098366,1731438632779,-248.015154,0.00020214,2]
[342098368,1731438632788,-248.015154,0.00020219,2]
[342098370,1731438632798,-248.015154,0.00020224,2]
[342098372,1731438632807,-248.015154,0.0002023,2]
[342098374,1731438632817,-248.015154,0.00020235,2]
[342098376,1731438632826,-300.0,0.00020238,2]
[342098378,1731438632835,-248.015154,0.0002024,2]
[342098380,1731438632844,-248.015154,0.00020246,2]
[342098382,1731438632853,-248.015154,0.00020251,2]
[342098384,1731438632863,-182.69,0.00020272,2]
[342098386,1731438632872,-4220.0,0.00020282,2]
[342098388,1731438632881,-153.0,0.00020687,2]
[342098390,1731438632891,-153.0,0.00020687,2]
[342098392,1731438632900,-500.0,0.000207,2]
[342098394,1731438632909,-24900.0,0.0002083,2]
[342098396,1731438632918,-5569.68562584,0.00020859,2]
[342098398,1731438632927,-153.0,0.00020959,2]
[342098400,1731438632937,-490.09889639,0.00021438,2]
[342098402,1731438632946,-1000.0,0.00021617,2]
[342098403,1731438632955,-478.73186587,0.00021673,2]
[342098404,1731438632964,-334.96,0.00021707,3]
[342098405,1731438632974,-500.0,0.00021716,2]
[342098406,1731438632983,-323.49212329,0.00021716,2]
[342098408,1731438633003,-343.1989375,0.00021716,2]
[342098409,1731438633018,-500.0,0.00021716,2]
[342098410,1731438633028,-490.67443994,0.00021716,2]
[342098411,1731438633039,-312.62943577,0.00021716,2]
[342098412,1731438633049,-339.67806461,0.00021716,2]
[342098413,1731438633059,-608.65229728,0.00021716,2]
[342098414,1731438633069,-500.0,0.00021716,2]
[342098415,1731438633079,-500.0,0.00021716,2]
[342098416,1731438633089,-500.0,0.00021716,2]
[342098417,1731438633098,-500.0,0.00021716,2]
[342098418,1731438633108,-500.0,0.00021716,2]
[342098419,1731438633119,-500.0,0.00021716,2]
[342098420,1731438633128,-500.0,0.00021716,2]
[342098421,1731438633138,-500.0,0.00021716,2]
[342098422,1731438633147,-500.0,0.00021716,2]
[342098423,1731438633157,-500.0,0.00021716,2]
[342098424,1731438633166,-500.0,0.00021716,2]
[342098425,1731438633176,-500.0,0.00021716,2]
[342098426,1731438633186,-500.0,0.00021716,2]
[342098427,1731438633196,-506.85146302,0.00021716,2]
[342098428,1731438633206,-500.0,0.00021716,2]
[342098429,1731438633215,-617.84365897,0.00021716,2]
[342098430,1731438633225,-178.31928193,0.00021716,2]
[342098431,1731438633235,-23046.42181305,0.00021717,2]
[342098449,1731438638699,-1169.27083333,0.0002,2]
[342098450,1731438638709,-78.01359309,0.0002083,2]
[342098451,1731438638723,-541.22361245,0.0002083,2]
[342098452,1731438638732,-2991.02073297,0.00021717,2]
[342098469,1731438642945,-320.81279151,0.00021717,2]
[342098491,1731438643570,-1000.0,0.000215,2]
[342098492,1731438643580,-31942.78873471,0.00021717,2]
[342098493,1731438643612,-350.52134652,0.00021717,2]
[342098510,1731438646669,-2018.41892365,0.00021717,2]
[342098513,1731438690051,159.277,0.0001492,2]
[342098554,1731439050845,167.956815,0.00013973,2]
[342098573,1731439474489,178.48928,0.00023836,120]
[342098613,1731439749368,167.994403,0.00013973,2]
[342098637,1731439832740,-300.0,0.0001834,2]
[342098638,1731439832750,-8845.16265318,0.00018341,2]
[342098639,1731439832761,-16054.83734682,0.00018341,2]
[342098640,1731439832770,-922.21331654,0.00018691,2]
[342098641,1731439832779,-25681.9858612,0.00018692,2]
[342098642,1731439832788,-5776.33464668,0.00018692,2]
[342098643,1731439832798,-3000.0,0.00018792,2]
[342098644,1731439832807,-152.0,0.00018902,2]
[342098645,1731439832816,-410.89636,0.00018907,2]
[342098646,1731439832825,-1793.303289,0.00019415,2]
[342098647,1731439832834,-487.48879351,0.000198,2]
[342098648,1731439832843,-1169.27083333,0.0002,2]
[342098649,1731439832955,-1793.303289,0.00020099,2]
[342098650,1731439832965,-341.0,0.00020174,2]
[342098651,1731439832974,-5776.33464668,0.00020367,2]
[342098652,1731439832983,-153.0,0.00020691,2]
[342098653,1731439832996,-161.771772,0.00020734,2]
[342098654,1731439833005,-161.771772,0.00020749,2]
[342098655,1731439833015,-161.771772,0.00020763,2]
[342098656,1731439833024,-161.771772,0.00020778,2]
[342098657,1731439833034,-1793.303289,0.00020784,2]
[342098658,1731439833043,-161.771772,0.00020793,2]
[342098659,1731439833052,-161.771772,0.00020808,2]
[342098660,1731439833062,-161.771772,0.00020823,2]
[342098661,1731439833071,-161.771772,0.00020838,2]
[342098662,1731439833080,-305.9382545,0.00020878,2]
[342098663,1731439833089,-303.8520826,0.00021507,2]
[342098664,1731439833098,-1000.0,0.00021517,2]
[342098665,1731439833108,-587.4960022,0.00021573,2]
[342098666,1731439833117,-226.4444863,0.00021616,2]
[342098667,1731439833127,-240.23925625,0.00021616,2]
[342098668,1731439833139,-218.84060504,0.00021616,2]
[342098669,1731439833149,-500.0,0.00021616,2]
[342098670,1731439833158,-237.77464523,0.00021616,2]
[342098671,1731439833168,-500.0,0.00021616,2]
[342098672,1731439833177,-276.0566081,0.00021616,2]
[342098673,1731439833187,-193.47210796,0.00021616,2]
[342098674,1731439833197,-168.73028741,0.00021616,2]
[342098675,1731439833206,-500.0,0.00021616,2]
[342098676,1731439833215,-546.16827961,0.00021616,2]
[342098677,1731439833225,-500.0,0.00021616,2]
[342098678,1731439833234,-500.0,0.00021616,2]
[342098679,1731439833243,-500.0,0.00021616,2]
[342098680,1731439833253,-312.91211988,0.00021616,2]
[342098681,1731439833262,-322.4506064,0.00021616,2]
[342098682,1731439833271,-21386.86182718,0.00021617,2]
[342098683,1731439833284,-86397.21003186,0.00021617,2]
[342098684,1731439833299,-119159.40009615,0.00021617,2]
[342098685,1731439833308,-587.4960022,0.00021655,2]
[342098686,1731439833317,-500.0,0.00021673,2]
[342098687,1731439833326,-500.0,0.00021673,2]
[342098688,1731439833335,-587.4960022,0.00021737,2]
[342098689,1731439833344,-6000.0,0.00021817,2]
[342098690,1731439833353,-1299.41197128,0.00021817,2]
[342098691,1731439833363,-587.4960022,0.00021818,2]
[342098692,1731439833372,-2383.07878601,0.0002187,2]
[342098693,1731439833386,-474.56768574,0.0002187,2]
[342098723,1731439838968,-1169.27083333,0.0002,2]
[342098724,1731439838978,-67.35352825,0.0002187,2]
[342098725,1731439838988,-906.49489092,0.000219,2]
[342098747,1731439844117,-171.16007024,0.00018591,2]
[342098748,1731439844126,-2093.50510908,0.000219,2]
[342098749,1731439844135,-587.4960022,0.000219,2]
[342098750,1731439844147,-4220.0,0.00021905,4]
[342098751,1731439844156,-200.0,0.0002191,7]
[342098752,1731439844165,-3000.0,0.0002191,2]
[342098753,1731439844174,-500.0,0.00021917,2]
[342098754,1731439844182,-500.0,0.00021917,2]
[342098755,1731439844191,-500.0,0.00021917,2]
[342098757,1731439844200,-500.0,0.00021917,2]
[342098759,1731439844209,-500.0,0.00021917,2]
[342098760,1731439844218,-500.0,0.00021917,2]
[342098761,1731439844228,-500.0,0.00021917,2]
[342098762,1731439844238,-633.24418579,0.00021917,2]
[342098764,1731439844247,-500.0,0.00021917,2]
[342098766,1731439844256,-536.8166896,0.00021917,2]
[342098767,1731439844265,-500.0,0.00021917,2]
[342098768,1731439844274,-1000.0,0.00021917,2]
[342098769,1731439844283,-500.0,0.00021917,2]
[342098770,1731439844291,-500.0,0.00021917,2]
[342098772,1731439844398,-500.0,0.00021917,2]
[342098773,1731439844408,-500.0,0.00021917,2]
[342098774,1731439844417,-642.88417161,0.00021917,2]
[342098775,1731439844426,-500.0,0.00021917,2]